bitfinex/quotes_SOLUSD_20240620
["timestamp","ask_amount","ask_price","bid_price","bid_amount"]
[1718864970203,7.3287,136.45,136.39,1.46353878]
[1718864970399,7.3287,136.45,136.38,45.0]
[1718864971710,7.3293,136.44,136.38,45.0]
[1718864972220,7.3297,136.43,136.35,20.0]
[1718864972403,7.3297,136.43,136.34,22.4019]
[1718864972915,21.72,136.46,136.34,22.4019]
[1718864973120,0.51,136.45,136.34,22.4019]
[1718864973306,7.6688,136.45,136.34,22.4019]
[1718864973655,7.4988,136.45,136.35,0.68]
[1718864973820,7.3288,136.45,136.35,45.68]
[1718864974922,7.3292,136.44,136.35,45.68]
[1718864975124,7.3289,136.45,136.35,45.68]
[1718864976233,7.3293,136.44,136.35,45.68]
[1718864977111,0.17,136.45,136.34,22.4019]
[1718864977320,0.68,136.45,136.34,22.4019]
[1718864977635,7.3306,136.42,136.34,22.4019]
[1718864978509,7.3306,136.42,136.35,0.17]
[1718864978721,7.3299,136.43,136.35,0.17]
[1718864979035,7.3299,136.43,136.35,45.17]
[1718864979931,29.0493,136.44,136.35,45.17]
[1718864981429,0.68,136.45,136.35,45.17]
[1718864981430,7.329,136.45,136.36,0.51]
[1718864981617,7.3288,136.45,136.37,0.17]
[1718864982320,7.3288,136.45,136.37,1.96578627]
[1718864983037,7.3283,136.46,136.37,1.96578627]
[1718864983227,7.3296,136.44,136.35,45.0]
[1718864983533,0.51,136.47,136.35,45.0]
[1718864983534,7.8379,136.47,136.36,1.2463934]
[1718864983742,7.6679,136.47,136.36,1.20666479]
[1718864983912,0.34,136.47,136.36,0.68]
[1718864984116,7.6677,136.47,136.36,0.68]
[1718864984629,7.3282,136.46,136.36,0.68]
[1718864984831,7.3282,136.46,136.37,16.3842]
[1718864985016,7.3277,136.47,136.38,51.7125]
[1718864985218,7.66604147,136.48,136.38,51.7125]
[1718864985419,7.3261,136.5,136.38,51.7125]
[1718864985841,7.3266,136.49,136.38,51.7125]
[1718864986021,7.3272,136.48,136.38,51.7125]
[1718864988245,7.3278,136.47,136.38,51.7125]
[1718864988618,7.3278,136.47,136.38,6.7125]
[1718864989339,7.3282,136.46,136.38,6.0325]
[1718864989514,7.3278,136.47,136.38,6.0325]
[1718864989932,7.3278,136.47,136.39,0.40120407]
[1718864990237,7.3278,136.47,136.38,6.0325]
[1718864990629,7.3278,136.47,136.39,45.51]
[1718864992327,7.3278,136.47,136.4,1.41050322]
[1718864993939,7.3281,136.46,136.39,45.17]
[1718864995430,7.3281,136.46,136.39,45.0]
[1718864995734,7.3287,136.45,136.39,45.0]
[1718864996123,0.17,136.47,136.39,45.0]
[1718864996124,7.3283,136.46,136.39,45.0]
[1718864996518,7.3287,136.45,136.39,45.0]
[1718864998236,7.3296,136.44,136.39,45.0]
[1718864998538,0.34,136.43,136.38,6.0325]
[1718864998743,7.6699,136.43,136.38,6.0325]
[1718864998920,0.34,136.43,136.38,6.0325]
[1718865000224,0.17,136.44,136.38,6.0325]
[1718865000427,7.499,136.45,136.38,6.0325]
[1718865000729,7.3294,136.44,136.38,6.0325]
[1718865000914,7.4988,136.45,136.38,6.0325]
[1718865001514,21.72,136.46,136.38,6.0325]
[1718865001734,21.72,136.46,136.39,45.0]
[1718865002115,7.3295,136.44,136.38,6.0325]
[1718865002317,7.3298,136.43,136.37,16.3842]
[1718865002517,21.72,136.46,136.37,16.3842]
[1718865003250,6.17387385,136.48,136.37,16.3842]
[1718865003544,0.37280353,136.48,136.38,0.51]
[1718865003835,0.37280353,136.48,136.39,0.17]
[1718865004041,14.99051586,136.49,136.39,0.17]
[1718865004229,14.99051586,136.49,136.4,6.265]
[1718865004430,14.99051586,136.49,136.41,3.6501154]
[1718865005138,7.66381586,136.49,136.42,16.3959]
[1718865005337,7.3256,136.51,136.43,1.46357713]
[1718865005539,29.0451,136.52,136.43,1.46357715]
[1718865005743,7.3251,136.52,136.42,16.5659]
[1718865005932,7.3256,136.51,136.42,16.5659]
[1718865006114,46.01949712,136.54,136.42,16.5659]
[1718865006316,58.3327,136.57,136.43,12.40848086]
[1718865006317,21.15358068,136.57,136.43,12.40848086]
[1718865006633,29.0437,136.55,136.45,0.17]
[1718865006839,7.3241,136.54,136.45,0.17]
[1718865007044,21.72,136.55,136.45,0.17]
[1718865007241,21.72,136.55,136.46,15.4978]
[1718865007542,21.72,136.55,136.47,0.34]
[1718865007942,29.0435,136.55,136.47,0.34]
[1718865008138,7.3248,136.53,136.46,15.4978]
[1718865008345,21.72,136.55,136.46,15.4978]
[1718865008529,18.3098,136.54,136.46,15.4978]
[1718865008731,7.3245,136.53,136.46,15.4978]
[1718865009045,7.6639,136.54,136.46,15.4978]
[1718865009234,21.72,136.55,136.46,15.4978]
[1718865009416,7.3236,136.55,136.46,15.4978]
[1718865009620,7.65687961,136.59,136.47,6.0182]
[1718865009926,21.72,136.58,136.48,20.34]
[1718865010129,21.72,136.62,136.51,0.17]
[1718865010341,7.3211,136.59,136.51,1.80565816]
[1718865010537,21.72,136.62,136.51,1.63565816]
[1718865010853,21.72,136.62,136.51,0.17]
[1718865011046,21.72,136.62,136.5,6.8383]
[1718865011255,7.3217,136.58,136.51,0.74970397]
[1718865011457,7.3229,136.56,136.5,6.4983]
[1718865011759,29.0418,136.58,136.5,6.4983]
[1718865012057,21.72,136.58,136.5,6.4983]
[1718865012635,7.4923,136.57,136.5,6.4983]
[1718865013552,7.4931,136.56,136.5,6.4983]
[1718865014152,7.3247,136.53,136.5,6.4983]
[1718865014330,7.324,136.54,136.5,6.4983]
[1718865014848,7.3238,136.55,136.5,6.4983]
[1718865015155,0.17,136.56,136.5,6.4983]
[1718865015656,7.3233,136.55,136.5,6.4983]
[1718865015849,7.3241,136.54,136.5,6.4983]
[1718865017138,7.3244,136.53,136.49,15.0754]
[1718865017335,7.324,136.54,136.49,15.0754]
[1718865017529,7.4949,136.53,136.46,22.0169]
[1718865017739,7.3255,136.51,136.46,22.0169]
[1718865018239,0.17,136.51,136.41,6.4935]
[1718865018432,7.3271,136.48,136.42,15.5209]
[1718865018631,21.72,136.49,136.42,15.5209]
[1718865019361,29.0465,136.49,136.42,15.5209]
[1718865019732,21.72,136.49,136.42,15.5209]
[1718865020451,29.0453,136.52,136.42,15.5209]
[1718865020642,29.0451,136.52,136.42,15.5209]
[1718865021426,29.0451,136.52,136.43,0.17]
[1718865021631,21.72,136.52,136.43,0.68]
[1718865021938,29.0437,136.55,136.45,0.17]
[1718865022136,21.72,136.55,136.46,16.0948]
[1718865022844,7.3244,136.53,136.46,16.0948]
[1718865023042,7.324,136.54,136.46,16.0948]
[1718865023431,29.0434,136.55,136.46,16.0948]
[1718865023752,29.0434,136.55,136.47,1.77987837]
[1718865024136,29.0434,136.55,136.46,16.0948]
[1718865025061,21.72,136.55,136.46,16.0948]
[1718865025258,7.3246,136.53,136.46,16.0948]
[1718865025435,7.3245,136.53,136.46,16.0948]
[1718865026059,7.324,136.54,136.46,16.0948]
[1718865026362,0.17,136.53,136.46,16.0948]
[1718865026657,7.6645,136.53,136.46,16.0948]
[1718865027157,7.325,136.52,136.46,16.0948]
[1718865027352,7.3255,136.51,136.46,16.0948]
[1718865027556,0.17,136.53,136.46,16.0948]
[1718865027760,0.34,136.53,136.46,16.0948]
[1718865027939,7.3269,136.49,136.46,16.0948]
[1718865028141,21.89,136.52,136.46,16.0948]
[1718865028142,7.3261,136.5,136.46,16.0948]
[1718865028534,0.17,136.51,136.46,16.0948]
[1718865028741,7.3262,136.5,136.46,16.0948]
[1718865028956,21.89,136.52,136.46,16.0948]
[1718865028957,22.06,136.52,136.46,16.0948]
[1718865029153,29.3854,136.52,136.46,16.0948]
[1718865030159,0.17,136.54,136.46,16.0948]
[1718865030669,7.3235,136.55,136.46,16.0948]
[1718865031665,29.0429,136.56,136.47,0.51]
[1718865031871,21.72,136.56,136.46,16.0948]
[1718865032163,7.3239,136.54,136.46,16.0948]
[1718865032359,7.3245,136.53,136.46,16.0948]
[1718865033856,18.4794,136.55,136.46,16.0948]
[1718865034169,7.3262,136.5,136.46,16.0948]
[1718865034345,7.3273,136.48,136.46,16.0948]
[1718865034549,21.89,136.53,136.46,16.0948]
[1718865034869,7.3276,136.47,136.44,6.1811]
[1718865035161,7.3282,136.46,136.42,15.1311]
[1718865035865,7.3283,136.46,136.42,15.1311]
[1718865037167,29.0478,136.47,136.42,15.1311]
[1718865037544,7.3281,136.46,136.42,15.1311]
[1718865038566,29.0478,136.47,136.42,15.1311]
[1718865041189,7.3281,136.46,136.42,15.1311]
[1718865041666,7.3306,136.42,136.39,15.0255]
[1718865041866,0.17,136.43,136.37,6.198]
[1718865042073,0.34,136.41,136.37,6.198]
[1718865042777,7.6699,136.43,136.37,6.198]
[1718865043161,7.5004,136.42,136.37,6.198]
[1718865043363,21.72,136.41,136.37,6.198]
[1718865043685,29.0509,136.41,136.37,6.198]
[1718865043975,22.06,136.42,136.37,6.198]
[1718865044273,29.3906,136.42,136.37,6.198]
[1718865044777,7.3308,136.41,136.37,6.198]
[1718865044970,29.3904,136.42,136.37,6.198]
[1718865045174,0.17,136.41,136.37,6.198]
[1718865045375,29.3904,136.42,136.37,6.198]
[1718865045561,22.06,136.42,136.37,6.198]
[1718865045961,21.72,136.42,136.37,6.198]
[1718865046162,7.4997,136.43,136.37,6.198]
[1718865046382,21.72,136.45,136.37,6.198]
[1718865046571,29.0487,136.45,136.37,6.198]
[1718865048660,29.0487,136.45,136.38,0.49464123]
[1718865048988,29.0487,136.45,136.37,6.198]
[1718865049179,7.3293,136.44,136.37,6.198]
[1718865049375,7.3299,136.43,136.37,6.198]
[1718865049776,7.4994,136.44,136.37,6.198]
[1718865050654,29.0488,136.45,136.37,6.198]
[1718865051171,29.049,136.45,136.37,6.198]
[1718865052370,7.3292,136.44,136.37,6.198]
[1718865052573,0.34,136.43,136.37,6.198]
[1718865052879,7.3311,136.41,136.37,6.198]
[1718865053388,7.3313,136.4,136.37,6.198]
[1718865053682,0.34,136.42,136.37,6.198]
[1718865053883,7.501,136.41,136.37,6.198]
[1718865054267,0.17,136.41,136.37,6.198]
[1718865054455,7.5009,136.41,136.37,6.198]
[1718865055288,7.3319,136.39,136.35,15.5335]
[1718865055490,7.3324,136.38,136.35,15.5335]
[1718865056395,7.333,136.37,136.28,21.4743]
[1718865056563,7.503,136.37,136.28,21.4743]
[1718865057183,0.17,136.38,136.28,21.4743]
[1718865057366,0.51,136.38,136.28,21.4743]
[1718865058188,7.8425,136.38,136.29,0.34]
[1718865058667,7.8425,136.38,136.29,1.81482712]
[1718865058868,7.8425,136.38,136.29,0.34]
[1718865058869,7.333,136.37,136.29,0.34]
[1718865059285,0.51,136.38,136.29,0.34]
[1718865060464,7.8424,136.38,136.29,0.34]
[1718865060862,0.51,136.38,136.29,0.34]
[1718865061271,7.3332,136.37,136.29,0.17]
[1718865061479,0.51,136.38,136.28,21.4743]
[1718865061794,7.3351,136.33,136.28,21.4743]
[1718865061968,7.3351,136.33,136.27,10.0]
[1718865061969,7.5061,136.32,136.27,10.0]
[1718865062170,7.3368,136.3,136.27,10.0]
[1718865062380,21.72,136.3,136.27,10.0]
[1718865062771,7.3376,136.29,136.27,10.0]
[1718865063089,7.3378,136.28,136.27,10.0]
[1718865063309,7.5078,136.28,136.27,4.65761024]
[1718865063469,8.0178,136.28,136.27,3.45361024]
[1718865064079,0.34,136.28,136.27,3.45361024]
[1718865064400,100.0,136.34,136.27,3.45361024]
[1718865064401,21.72,136.35,136.27,9.62161024]
[1718865064773,7.3322,136.39,136.28,15.342]
[1718865064972,7.3326,136.38,136.28,15.342]
[1718865065493,7.3332,136.37,136.28,15.342]
[1718865066000,7.3332,136.37,136.29,0.17]
[1718865066294,7.3339,136.36,136.28,15.342]
[1718865066594,7.3341,136.35,136.28,15.342]
[1718865066985,0.17,136.34,136.28,15.342]
[1718865067202,0.17,136.33,136.27,9.62161024]
[1718865067379,7.3364,136.31,136.27,3.45361024]
[1718865067997,0.17,136.31,136.27,3.45361024]
[1718865068996,7.3368,136.3,136.27,3.45361024]
[1718865069199,0.17,136.31,136.27,3.45361024]
[1718865070001,7.3378,136.28,136.27,3.45361024]
[1718865070195,7.3369,136.3,136.27,3.45361024]
[1718865070409,7.6762,136.31,136.27,3.45361024]
[1718865070583,0.17,136.29,136.27,3.45361024]
[1718865070902,0.34,136.29,136.27,3.45361024]
[1718865071089,7.5069,136.3,136.27,3.45361024]
[1718865071289,7.3373,136.29,136.27,3.45361024]
[1718865071508,7.5078,136.28,136.27,3.45361024]
[1718865071715,7.8478,136.28,136.27,3.45361024]
[1718865072006,0.17,136.27,136.19,22.1789]
[1718865072214,7.3401,136.24,136.19,22.1789]
[1718865072387,0.51,136.23,136.16,6.349]
[1718865072709,0.17,136.23,136.17,1.75202415]
[1718865072881,18.3476,136.26,136.16,6.349]
[1718865072882,7.3402,136.24,136.16,6.349]
[1718865073284,0.68,136.25,136.16,6.349]
[1718865073618,7.3411,136.22,136.16,6.349]
[1718865073905,0.68,136.25,136.16,6.349]
[1718865074313,7.341,136.22,136.16,6.349]
[1718865074685,7.3407,136.23,136.16,6.349]
[1718865075203,7.341,136.22,136.16,6.349]
[1718865075411,0.68,136.25,136.16,6.349]
[1718865075909,7.3411,136.22,136.16,6.349]
[1718865076289,7.3406,136.23,136.16,6.349]
[1718865077115,38.3474,136.26,136.16,6.349]
[1718865077116,6.2788,136.28,136.16,6.349]
[1718865077312,18.6871,136.27,136.16,6.349]
[1718865077485,5.71968147,136.31,136.19,0.17]
[1718865077814,13.4073,136.33,136.21,0.17]
[1718865078015,7.3374,136.29,136.21,20.34]
[1718865078194,7.3374,136.29,136.22,3.21753889]
[1718865078393,7.3357,136.32,136.22,3.21753889]
[1718865078601,44.07760353,136.36,136.25,15.1168]
[1718865078799,7.3365,136.31,136.25,15.1168]
[1718865079200,44.07660353,136.36,136.26,1.75559143]
[1718865079395,44.07660353,136.36,136.25,15.1168]
[1718865079595,7.3348,136.34,136.25,15.1168]
[1718865080001,7.3356,136.32,136.25,15.1168]
[1718865080197,7.5052,136.33,136.26,6.4677]
[1718865080518,7.5053,136.33,136.26,6.4677]
[1718865081017,7.3363,136.31,136.26,6.4677]
[1718865081520,25.37,136.36,136.26,6.4677]
[1718865081705,7.3342,136.35,136.26,6.4677]
[1718865081909,7.3336,136.36,136.26,6.4677]
[1718865082097,7.3329,136.37,136.27,0.17]
[1718865082635,7.66095296,136.4,136.27,0.34]
[1718865082843,7.66095296,136.4,136.3,15.8354]
[1718865082844,7.3325,136.38,136.3,15.8354]
[1718865083007,7.3321,136.39,136.3,15.8354]
[1718865083328,18.3272,136.41,136.3,15.8354]
[1718865083509,18.3299,136.39,136.3,15.8354]
[1718865083711,7.3337,136.36,136.3,15.8354]
[1718865083921,7.3341,136.35,136.3,15.8354]
[1718865084718,7.3342,136.35,136.3,15.8354]
[1718865085234,7.3351,136.33,136.3,15.8354]
[1718865085610,0.17,136.38,136.3,15.8354]
[1718865085808,20.68,136.38,136.3,15.8354]
[1718865086013,7.3337,136.36,136.3,15.8354]
[1718865086211,7.3341,136.35,136.3,15.8354]
[1718865086814,0.17,136.36,136.3,15.8354]
[1718865086815,7.3346,136.34,136.3,15.8354]
[1718865087116,0.17,136.36,136.3,15.8354]
[1718865087317,6.3812,136.42,136.3,15.8354]
[1718865087625,7.3324,136.38,136.3,15.8354]
[1718865087821,7.3331,136.37,136.3,15.8354]
[1718865088929,38.86429099,136.43,136.31,6.8445]
[1718865088930,51.35659511,136.43,136.31,6.8445]
[1718865089233,7.3315,136.4,136.31,6.8445]
[1718865089531,7.3321,136.39,136.31,6.5045]
[1718865090530,0.17,136.38,136.31,6.5045]
[1718865090831,0.68,136.4,136.31,6.5045]
[1718865091322,7.333,136.37,136.31,6.5045]
[1718865091735,0.17,136.38,136.31,6.5045]
[1718865092024,0.51,136.38,136.31,6.5045]
[1718865092418,7.332,136.39,136.31,6.5045]
[1718865092608,7.6715,136.4,136.31,6.5045]
[1718865093025,0.34,136.4,136.31,6.5045]
[1718865093238,18.3244,136.44,136.32,0.17]
[1718865093414,7.3304,136.42,136.33,15.6556]
[1718865094006,7.3283,136.46,136.37,0.17]
[1718865094208,7.3276,136.47,136.37,2.23207373]
[1718865094407,18.3171,136.49,136.37,0.34]
[1718865094606,7.3299,136.43,136.36,15.8934]
[1718865094832,7.3298,136.43,136.36,15.8934]
[1718865095213,7.3294,136.44,136.36,15.8934]
[1718865095537,18.3178,136.48,136.36,15.8934]
[1718865095735,7.329,136.45,136.36,15.8934]
[1718865095915,7.3293,136.44,136.36,15.8934]
[1718865096912,7.3289,136.45,136.36,15.8934]
[1718865098011,7.3274,136.48,136.39,16.0334]
[1718865098212,51.34757407,136.51,136.4,0.43639311]
[1718865098213,7.3269,136.49,136.4,0.43639311]
[1718865099013,7.3269,136.49,136.41,0.17]
[1718865099231,7.3269,136.49,136.4,1.70493644]
[1718865099429,7.3262,136.5,136.41,0.17]
[1718865099831,7.3262,136.5,136.42,6.5696]
[1718865100010,7.3255,136.51,136.42,6.5696]
[1718865100211,7.3255,136.51,136.43,1.82909654]
[1718865100414,57.39425302,136.56,136.43,15.7996]
[1718865100712,7.3258,136.51,136.43,15.7996]
[1718865100932,46.69292672,136.53,136.43,15.7996]
[1718865101124,7.3279,136.47,136.43,15.7996]
[1718865101438,7.3268,136.49,136.43,15.7996]
[1718865101740,7.326,136.5,136.43,15.7996]
[1718865101942,18.3122,136.53,136.43,15.7996]
[1718865102239,7.3273,136.48,136.43,15.7996]
[1718865102421,7.3276,136.47,136.43,15.7996]
[1718865102938,7.3266,136.49,136.43,15.7996]
[1718865104630,7.3271,136.48,136.43,15.7996]
[1718865104833,0.17,136.49,136.43,15.7996]
[1718865105012,7.329,136.45,136.43,15.7996]
[1718865105218,7.329,136.45,136.42,6.5696]
[1718865105418,7.3292,136.44,136.4,15.088]
[1718865106436,7.3288,136.45,136.4,15.088]
[1718865106943,7.4997,136.44,136.4,15.088]
[1718865107442,7.3298,136.43,136.4,15.088]
[1718865108238,7.3308,136.41,136.4,15.088]
[1718865108541,7.331,136.41,136.37,15.27]
[1718865108843,18.6642,136.44,136.37,15.27]
[1718865108844,7.3314,136.4,136.37,15.27]
[1718865109363,7.331,136.41,136.37,15.27]
[1718865109656,0.17,136.44,136.37,15.27]
[1718865109819,7.6688,136.45,136.37,15.27]
[1718865110725,7.3292,136.44,136.37,15.27]
[1718865113155,7.3289,136.45,136.37,15.27]
[1718865113646,7.3293,136.44,136.37,15.27]
[1718865115151,18.3188,136.48,136.37,15.27]
[1718865115152,7.3289,136.45,136.37,15.27]
[1718865115446,7.3278,136.47,136.38,0.17]
[1718865115625,7.3278,136.47,136.38,0.34]
[1718865116031,7.3282,136.46,136.38,0.34]
[1718865116253,7.3287,136.45,136.38,0.34]
[1718865116433,7.66275007,136.51,136.41,0.17]
[1718865116636,62.35510353,136.57,136.45,7.3284]
[1718865116831,20.0,136.56,136.44,7.329]
[1718865117039,7.66010017,136.56,136.42,0.17]
[1718865117230,7.66010017,136.56,136.42,0.51]
[1718865117431,7.66010017,136.56,136.41,20.0]
[1718865117728,45.17,136.55,136.42,1.46375266]
[1718865118031,0.17,136.53,136.42,1.46375266]
[1718865118352,7.3265,136.49,136.42,1.46375266]
[1718865118544,7.3265,136.49,136.41,20.0]
[1718865118749,7.3272,136.48,136.4,15.1758]
[1718865120546,0.17,136.52,136.41,0.34]
[1718865120755,7.3261,136.5,136.41,0.34]
[1718865121050,7.3265,136.49,136.41,0.34]
[1718865121953,7.4971,136.48,136.4,15.0058]
[1718865122149,7.3276,136.47,136.4,15.0058]
[1718865122650,0.17,136.49,136.4,15.0058]
[1718865122651,7.3292,136.44,136.4,15.0058]
[1718865122858,7.3298,136.43,136.39,6.4901]
[1718865123348,7.3297,136.43,136.39,6.4901]
[1718865123647,7.3294,136.44,136.39,6.4901]
[1718865124250,7.3294,136.44,136.39,13.822]
[1718865125340,43.6864,136.49,136.39,6.4901]
[1718865125650,7.3284,136.46,136.41,7.3307]
[1718865125854,0.34,136.45,136.41,7.3307]
[1718865126948,7.6687,136.45,136.41,7.3307]
[1718865127767,0.34,136.45,136.4,7.3312]
[1718865128060,0.34,136.44,136.39,6.4901]
[1718865128557,7.33,136.43,136.39,13.8219]
[1718865128750,0.34,136.44,136.39,13.8219]
[1718865129135,7.6695,136.44,136.39,13.8219]
[1718865129334,7.3287,136.45,136.4,7.3312]
[1718865129535,0.17,136.46,136.39,6.4901]
[1718865129943,0.17,136.46,136.4,7.3311]
[1718865130257,7.3288,136.45,136.39,6.4901]
[1718865130561,7.3288,136.45,136.4,7.331]
[1718865130735,7.4984,136.46,136.41,7.3307]
[1718865130940,0.34,136.45,136.41,7.3307]
[1718865131161,7.6687,136.45,136.41,7.3307]
[1718865131456,7.6687,136.45,136.39,6.4901]
[1718865131457,7.6687,136.45,136.4,7.3311]
[1718865131633,7.3296,136.44,136.39,13.8218]
[1718865133154,7.8388,136.45,136.4,7.3311]
[1718865133357,7.4995,136.44,136.39,13.8218]
[1718865133542,7.3298,136.43,136.39,13.8218]
[1718865134047,7.3298,136.43,136.39,6.4901]
[1718865134558,0.17,136.44,136.36,30.1677]
[1718865134559,7.5007,136.42,136.36,30.1677]
[1718865134757,7.3326,136.38,136.33,30.2182]
[1718865135053,7.3331,136.37,136.33,22.8832]
[1718865135363,21.72,136.38,136.33,16.6479]
[1718865135553,7.3336,136.36,136.31,7.3359]
[1718865135855,7.3341,136.35,136.3,13.5719]
[1718865136433,7.3341,136.35,136.29,16.6479]
[1718865136434,7.5047,136.34,136.29,23.9851]
[1718865136655,0.34,136.34,136.3,7.3367]
[1718865136846,0.34,136.34,136.31,7.3362]
[1718865137052,21.72,136.35,136.31,7.336]
[1718865137560,8.0137,136.36,136.29,16.6479]
[1718865137561,7.3349,136.34,136.29,23.9848]
[1718865138262,0.17,136.34,136.29,23.9851]
[1718865138438,7.5049,136.34,136.29,7.3372]
[1718865138638,7.3352,136.33,136.28,7.3376]
[1718865138857,7.3353,136.33,136.28,7.3378]
[1718865139159,0.17,136.33,136.29,7.3371]
[1718865139336,0.68,136.33,136.29,7.3371]
[1718865139537,0.17,136.33,136.29,7.3367]
[1718865139749,0.51,136.34,136.29,7.3367]
[1718865139963,0.51,136.34,136.3,7.3366]
[1718865140255,0.17,136.35,136.26,22.5927]
[1718865140452,0.34,136.36,136.26,22.5927]
[1718865140656,0.34,136.35,136.26,22.5927]
[1718865140859,0.34,136.35,136.31,7.3358]
[1718865141163,7.65851286,136.39,136.27,0.17]
[1718865141344,23.42359486,136.42,136.27,20.68]
[1718865141345,28.02384377,136.42,136.27,20.68]
[1718865141547,7.3335,136.36,136.31,7.336]
[1718865141861,28.02384377,136.42,136.31,7.336]
[1718865141862,7.3332,136.37,136.31,7.336]
[1718865142042,7.3332,136.37,136.32,7.3353]
[1718865144634,7.5041,136.35,136.3,7.3365]
[1718865144954,0.17,136.35,136.26,22.5927]
[1718865145342,0.17,136.37,136.26,22.5927]
[1718865145547,0.34,136.37,136.26,22.5927]
[1718865145750,7.3343,136.35,136.3,7.3366]
[1718865145943,7.336,136.32,136.27,7.338]
[1718865146370,0.17,136.3,136.26,23.4308]
[1718865146545,7.6767,136.3,136.25,7.3394]
[1718865146856,22.3458,136.35,136.23,15.7651]
[1718865146857,6.1147,136.39,136.23,15.7651]
[1718865147363,7.3338,136.36,136.32,7.3356]
[1718865147768,7.3338,136.36,136.31,7.336]
[1718865148968,7.504,136.35,136.3,7.3365]
[1718865149662,0.17,136.35,136.24,0.17]
[1718865149968,7.3342,136.35,136.3,7.3363]
[1718865150872,7.3342,136.35,136.31,7.3361]
[1718865151463,14.98799629,136.43,136.32,0.34]
[1718865151671,7.3297,136.43,136.38,7.3324]
[1718865151848,7.3297,136.43,136.38,7.3321]
[1718865152243,7.3297,136.43,136.32,0.34]
[1718865152244,14.98290757,136.46,136.4,7.3309]
[1718865152471,25.75280353,136.47,136.4,7.3309]
[1718865152755,7.3288,136.45,136.4,7.3309]
[1718865153575,0.51,136.44,136.4,7.3309]
[1718865155073,7.3282,136.46,136.41,7.3307]
[1718865155571,31.6703,136.51,136.39,3.75833491]
[1718865155751,7.3271,136.48,136.43,7.3294]
[1718865156158,31.6703,136.51,136.4,3.80937905]
[1718865156459,7.3268,136.49,136.4,3.80937905]
[1718865156976,7.3274,136.48,136.4,3.80937905]
[1718865157271,7.3274,136.48,136.39,5.27346055]
[1718865157470,7.3274,136.48,136.4,4.8615]
[1718865158046,7.8368,136.49,136.4,4.8615]
[1718865158274,7.3271,136.48,136.4,4.8615]
[1718865158774,7.3276,136.47,136.39,4.8615]
[1718865159070,7.3276,136.47,136.4,4.86140151]
[1718865159276,7.3271,136.48,136.4,4.86140151]
[1718865159957,7.3271,136.48,136.39,4.86394634]
[1718865160153,7.3276,136.47,136.4,4.86522553]
[1718865160359,0.17,136.48,136.41,3.81091779]
[1718865160662,0.51,136.49,136.39,3.81119597]
[1718865160968,7.3271,136.48,136.4,3.81327673]
[1718865161973,7.3271,136.48,136.39,3.81567772]
[1718865162272,7.3271,136.48,136.4,3.81539797]
[1718865163367,7.3271,136.48,136.39,3.81539797]
[1718865163568,7.3271,136.48,136.4,3.8151609]
[1718865163780,0.51,136.47,136.39,5.28209623]
[1718865163951,7.65214121,136.53,136.42,22.016]
[1718865164152,18.305,136.58,136.44,0.17]
[1718865164350,18.305,136.58,136.46,0.17]